[Event "Turkish Youth Championships 2023"]
[Site "Samsun"]
[Date "2023.05.22"]
[Round "5.9"]
[White "Dogan, Umut Anil"]
[Black "Atis, Hasan"]
[Result "1/2-1/2"]
[WhiteElo "1857"]
[BlackElo "1890"]
[Annotator "COMBH"]
[PlyCount "200"]
[EventDate "2023.05.19"]
[EventType "swiss"]
[EventCountry "TUR"]
[TimeControl "5400+30"]

1. d4 {[%emt 0:01:00]} d5 {[%emt 0:01:00]} 2. Nf3 {[%emt 0:00:30]} Nf6 {[%emt 0:00:30]} 3. Bf4 {[%emt 0:00:30]} e6 {[%emt 0:00:30]} 4. e3 {[%emt 0:00:30]} Bd6 {[%emt 0:00:30]} 5. Nbd2 {[%emt 0:00:30]} O-O {[%emt 0:00:30]} 6. Bd3 {[%emt 0:00:30]} c5 {[%emt 0:00:30]} 7. c3 {[%emt 0:00:30]} b6 {[%emt 0:06:30]} 8. Ne5 {[%emt 0:03:30]} Bb7 {[%emt 0:01:30]} 9. Qf3 {[%emt 0:00:30]} Qc7 {[%emt 0:02:30]} 10. Qh3 {[%emt 0:12:30]} g6 {[%emt 0:21:30]} 11. Bh6 {[%emt 0:01:30]} Re8 {[%emt 0:00:00]} 12. f4 {[%emt 0:00:00]} cxd4 {[%emt 0:04:00]} 13. exd4 {[%emt 0:00:00]} Ne4 {[%emt 0:00:30]} 14. Nxe4 {[%emt 0:07:30]} dxe4 {[%emt 0:00:30]} 15. Bb5 {[%emt 0:00:00]} Nc6 {[%emt 0:04:30]} 16. O-O {[%emt 0:11:00]} a6 {[%emt 0:10:30]} 17. Bxc6 {[%emt 0:02:30]} Bxc6 {[%emt 0:00:30]} 18. Ng4 {[%emt 0:00:30]} Be7 {[%emt 0:00:00]} 19. Bg5 {[%emt 0:00:30]} f5 {[%emt 0:18:00]} 20. Nf6+ {[%emt 0:00:30]} Bxf6 {[%emt 0:00:30]} 21. Bxf6 {[%emt 0:00:00]} Bd5 {[%emt 0:03:30]} 22. Qh6 {[%emt 0:03:00]} Ra7 {[%emt 0:06:26]} 23. Rae1 {[%emt 0:01:30]} Qf7 {[%emt 0:00:13]} 24. Be5 {[%emt 0:00:00]} Qf8 {[%emt 0:00:08]} 25. Qh4 {[%emt 0:01:00]} h5 {[%emt 0:06:37]} 26. Re3 {[%emt 0:01:30]} Kh7 {[%emt 0:00:05]} 27. Rg3 {[%emt 0:01:30]} Qf7 {[%emt 0:01:21]} 28. Rg5 {[%emt 0:06:30]} Rg8 {[%emt 0:00:38]} 29. h3 {[%emt 0:03:30]} Bc6 {[%emt 0:00:09]} 30. Kh2 {[%emt 0:00:30]} Be8 {[%emt 0:02:45]} 31. g4 {[%emt 0:00:30]} Qf8 {[%emt 0:04:55]} 32. Rg1 {[%emt 0:00:30]} fxg4 {[%emt 0:01:50]} 33. hxg4 {[%emt 0:00:30]} Rf7 {[%emt 0:00:30]} 34. gxh5 {[%emt 0:00:30]} Qh6 {[%emt 0:00:30]} 35. hxg6+ {[%emt 0:00:30]} Rxg6 {[%emt 0:00:30]} 36. Rh5 {[%emt 0:00:30]} Qxh5 {[%emt 0:02:30]} 37. Qxh5+ {[%emt 0:00:30]} Rh6 {[%emt 0:00:01]} 38. Qxh6+ {[%emt 0:01:30]} Kxh6 {[%emt 0:00:02]} 39. Kg3 {[%emt 0:00:30]} Rf5 {[%emt 0:01:06]} 40. c4 {[%emt 0:00:30]} Bc6 {[%emt 0:00:49]} 41. Rd1 {[%emt 0:00:30]} Rh5 {[%emt 0:01:13]} 42. d5 {[%emt 0:01:30]} exd5 {[%emt 0:00:01]} 43. cxd5 {[%emt 0:00:00]} Bd7 {[%emt 0:00:05]} 44. d6 {[%emt 0:01:00]} Kg6 {[%emt 0:00:43]} 45. Rg1 {[%emt 0:00:30]} Kf5 {[%emt 0:00:13]} 46. Re1 {[%emt 0:02:30]} Rh6 {[%emt 0:01:17]} 47. Re2 {[%emt 0:05:30]} Rg6+ {[%emt 0:00:45]} 48. Kf2 {[%emt 0:00:30]} Ke6 {[%emt 0:00:34]} 49. Rxe4 {[%emt 0:00:30]} Bc6 {[%emt 0:00:02]} 50. Re2 {[%emt 0:00:30]} Rg2+ {[%emt 0:01:18]} 51. Ke3 {[%emt 0:00:30]} Rxe2+ {[%emt 0:00:00]} 52. Kxe2 {[%emt 0:00:30]} Kd5 {[%emt 0:00:17]} 53. Kd3 {[%emt 0:00:30]} Bb5+ {[%emt 0:00:53]} 54. Kc3 {[%emt 0:01:30]} Bd7 {[%emt 0:00:02]} 55. Kd3 {[%emt 0:01:30]} Bg4 {[%emt 0:01:21]} 56. Ke3 {[%emt 0:00:30]} b5 {[%emt 0:00:04]} 57. Kf2 {[%emt 0:00:30]} Bd7 {[%emt 0:00:35]} 58. Kg3 {[%emt 0:00:30]} a5 {[%emt 0:00:25]} 59. Kh4 {[%emt 0:00:30]} Ke6 {[%emt 0:00:15]} 60. Kg5 {[%emt 0:01:30]} Kf7 {[%emt 0:00:01]} 61. f5 {[%emt 0:00:30]} Bc6 {[%emt 0:01:13]} 62. Bd4 {[%emt 0:00:30]} a4 {[%emt 0:00:30]} 63. Kf4 {[%emt 0:00:30]} Bd7 {[%emt 0:00:30]} 64. Ke5 {[%emt 0:00:30]} Bc8 {[%emt 0:00:34]} 65. Kd5 {[%emt 0:02:30]} Bxf5 {[%emt 0:00:30]} 66. Kc6 {[%emt 0:02:30]} Ke8 {[%emt 0:00:00]} 67. Kxb5 {[%emt 0:00:30]} Bd7+ {[%emt 0:01:00]} 68. Kc5 {[%emt 0:02:30]} Kd8 {[%emt 0:00:33]} 69. Kb4 {[%emt 0:04:30]} Kc8 {[%emt 0:00:06]} 70. Ka3 {[%emt 0:02:32]} Kb7 {[%emt 0:00:30]} 71. Be5 {[%emt 0:00:30]} Ka6 {[%emt 0:00:30]} 72. Kb4 {[%emt 0:00:30]} Kb6 {[%emt 0:00:00]} 73. Bd4+ {[%emt 0:01:23]} Kb7 {[%emt 0:00:07]} 74. Be5 {[%emt 0:01:55]} Kb6 {[%emt 0:00:37]} 75. Bd4+ {[%emt 0:00:49]} Kb7 {[%emt 0:00:30]} 76. Kc5 {[%emt 0:00:00]} Be6 {[%emt 0:00:10]} 77. Be5 {[%emt 0:00:00]} Bd7 {[%emt 0:00:14]} 78. Kd5 {[%emt 0:03:07]} Kb6 {[%emt 0:00:01]} 79. Bd4+ {[%emt 0:00:33]} Kb5 {[%emt 0:00:15]} 80. Ke5 {[%emt 0:00:00]} Kc6 {[%emt 0:00:16]} 81. Bc3 {[%emt 0:00:16]} Bh3 {[%emt 0:00:39]} 82. Bb4 {[%emt 0:00:30]} Bg4 {[%emt 0:00:30]} 83. Kd4 {[%emt 0:00:30]} Be6 {[%emt 0:00:30]} 84. a3 {[%emt 0:00:30]} Bg4 {[%emt 0:00:30]} 85. Kc3 {[%emt 0:00:30]} Be6 {[%emt 0:00:30]} 86. Kd3 {[%emt 0:00:30]} Bf5+ {[%emt 0:00:30]} 87. Kd4 {[%emt 0:00:02]} Be6 {[%emt 0:00:00]} 88. Ke5 {[%emt 0:00:30]} Bg4 {[%emt 0:00:00]} 89. Bd2 {[%emt 0:00:30]} Bh3 {[%emt 0:00:00]} 90. Bf4 {[%emt 0:00:30]} Bg4 {[%emt 0:00:29]} 91. Ke4 {[%emt 0:00:30]} Be6 {[%emt 0:00:30]} 92. Kd4 {[%emt 0:00:00]} Bg4 {[%emt 0:00:00]} 93. Kc4 {[%emt 0:00:00]} Be6+ {[%emt 0:00:05]} 94. Kb4 {[%emt 0:00:00]} Bb3 {[%emt 0:00:30]} 95. Bh2 {[%emt 0:00:00]} Bd1 {[%emt 0:00:00]} 96. Ka5 {[%emt 0:00:00]} Bb3 {[%emt 0:00:24]} 97. Ka6 {[%emt 0:00:10]} Bc4+ {[%emt 0:00:13]} 98. Ka7 {[%emt 0:00:00]} Bb3 {[%emt 0:00:30]} 99. Kb8 {[%emt 0:00:22]} Be6 {[%emt 0:00:30]} 100. Bg3 {[%emt 0:00:30]} Bg4 {[%emt 0:00:00]} 1/2-1/2

[Event "Turkish Youth Championships 2023"]
[Site "Samsun"]
[Date "2023.05.22"]
[Round "5.10"]
[White "Cilek, Bora"]
[Black "Koyuncu, Omer Arda"]
[Result "1-0"]
[WhiteElo "2285"]
[BlackElo "1694"]
[Annotator "RC"]
[PlyCount "63"]
[EventDate "2023.05.19"]
[EventType "swiss"]
[EventCountry "TUR"]
[TimeControl "5400+30"]
[BlackClock "0:07:24"]

1. Nf3 {[%emt 0:01:00]} Nf6 {[%emt 0:01:00]} 2. g3 {[%emt 0:00:30]} g6 {[%emt 0:00:30]} 3. Bg2 {[%emt 0:00:30]} Bg7 {[%emt 0:00:30]} 4. d4 {[%emt 0:00:30]} c6 {[%emt 0:00:30]} 5. O-O {[%emt 0:00:30]} O-O {[%emt 0:00:30]} 6. c4 {[%emt 0:00:30]} d5 {[%emt 0:00:30]} 7. cxd5 {[%emt 0:00:30]} cxd5 {[%emt 0:00:30]} 8. Nc3 {[%emt 0:00:30]} Ne4 {[%emt 0:00:30]} 9. e3 {[%emt 0:08:30]} Nxc3 {[%emt 0:15:30]} 10. bxc3 {[%emt 0:00:00]} Nc6 {[%emt 0:00:30]} 11. Nd2 {[%emt 0:01:00]} Be6 {[%emt 0:14:30]} 12. Qa4 {[%emt 0:24:30]} Rc8 {[%emt 0:07:30]} 13. Ba3 {[%emt 0:01:30]} Qd7 {[%emt 0:05:30]} 14. Rfc1 {[%emt 0:07:30]} Bh3 {[%emt 0:01:30]} 15. Bxh3 {[%emt 0:05:30]} Qxh3 {[%emt 0:00:30]} 16. Rab1 {[%emt 0:00:30]} Qd7 {[%emt 0:13:30]} 17. c4 {[%emt 0:03:30]} dxc4 {[%emt 0:04:30]} 18. Nxc4 {[%emt 0:03:30]} Rfd8 {[%emt 0:01:30]} 19. Qb5 {[%emt 0:16:30]} b6 {[%emt 0:06:30]} 20. Rc2 {[%emt 0:00:30]} Nb8 {[%emt 0:19:18]} 21. Qxd7 {[%emt 0:02:30]} Rxd7 {[%emt 0:00:41]} 22. Rbc1 {[%emt 0:00:30]} Rdc7 {[%emt 0:00:00]} 23. Nxb6 {[%emt 0:00:30]} Rxc2 {[%emt 0:00:19]} 24. Nxc8 {[%emt 0:00:00]} Rxc1+ {[%emt 0:00:16]} 25. Bxc1 {[%emt 0:00:00]} Nc6 {[%emt 0:00:42]} 26. d5 {[%emt 0:01:30]} Nb4 {[%emt 0:00:00]} 27. Nxe7+ {[%emt 0:00:00]} Kf8 {[%emt 0:00:12]} 28. Ba3 {[%emt 0:00:00]} Kxe7 {[%emt 0:00:33]} 29. Bxb4+ {[%emt 0:00:30]} Kd7 {[%emt 0:00:03]} 30. e4 {[%emt 0:00:00]} a6 {[%emt 0:00:13]} 31. f4 {[%emt 0:00:00]} f6 {[%emt 0:00:10]} 32. Kf2 {[%emt 0:00:00]} 1-0

[Event "Turkish Youth Championships 2023"]
[Site "Samsun"]
[Date "2023.05.22"]
[Round "5.11"]
[White "Demirbas, Emre"]
[Black "Caliskan, Murat Osman"]
[Result "1-0"]
[WhiteElo "2013"]
[BlackElo "1538"]
[Annotator "TA"]
[PlyCount "67"]
[EventDate "2023.05.19"]
[EventType "swiss"]
[EventCountry "TUR"]
[TimeControl "5400+30"]

{[%evp 9,67,-36,0,-24,1,0,26,23,31,25,20,13,32,21,90,55,113,91,108,97,97,97,102,87,100,56,98,49,60,47,81,55,68,64,69,69,208,204,245,241,237,247,208,179,378,369,472,416,483,441,585,577,566,576,644,627,4702,3711,29985,29986]} 1. Nf3 {[%emt 0:01:00]} d5 {[%emt 0:04:00]} 2. c4 {[%emt 0:00:30]} d4 {[%emt 0:00:30]} 3. e3 {[%emt 0:00:30]} c5 {[%emt 0:00:00]} 4. exd4 {[%emt 0:00:00]} cxd4 {[%emt 0:00:00]} 5. g3 {[%emt 0:00:00]} Nc6 {[%emt 0:00:30]} 6. d3 {[%emt 0:00:30] A09: Réti Opening: 1 Nf3 d5 2 c4.} Bf5 {[%emt 0:00:30]} 7. a3 {[%emt 0:00:30]} e6 {[%emt 0:00:30]} 8. b4 {[%emt 0:00:30] White has an edge.} Nf6 {[%emt 0:00:30]} 9. Bg2 {[%emt 0:00:30]} Be7 {[%emt 0:00:30]} 10. O-O {[%emt 0:00:30] [#]} O-O $146 {[%emt 0:00:30]} ({Predecessor:} 10... a6 11. Bb2 Ng4 12. Qe2 Bf6 13. Nfd2 Nge5 14. Ne4 Be7 15. h3 h5 16. f4 Nd7 {1-0 Giovannetti,M (2005)-Cosman,B (1491) CAN-ch Highschool 1977 (3)}) 11. Bb2 {[%emt 0:00:30]} (11. b5 $5 {[%cal Rb5c6]} Na5 12. Bd2 $11) 11... Bg4 {[%emt 0:00:30]} (11... Nd7 $11 {remains equal.}) 12. Nbd2 {[%emt 0:00:30]} Ne5 {[%emt 0:00:30]} (12... a5 $14) 13. Qb3 {[%emt 0:00:30]} Nxf3+ {[%emt 0:00:30]} 14. Nxf3 {[%emt 0:03:30]} Bxf3 {[%emt 0:01:30]} 15. Bxf3 {[%emt 0:00:00]} Qd7 {[%emt 0:00:00]} 16. Rfe1 {[%emt 0:00:00]} Rac8 {[%emt 0:00:00]} 17. Rac1 {[%emt 0:00:30]} Rfd8 {[%emt 0:00:30]} 18. Rc2 {[%emt 0:01:30]} (18. c5 $16) 18... h6 {[%emt 0:01:30]} 19. Bc1 {[%emt 0:00:30]} Nh7 {[%emt 0:00:30]} 20. Be4 {[%emt 0:01:30] White is more active.} Ng5 {[%emt 0:02:30]} 21. Bxg5 {[%emt 0:00:30]} Bxg5 {[%emt 0:00:30] Black is weak on the light squares} 22. c5 {[%emt 0:00:30]} Rc7 {[%emt 0:02:30] [#] Loses the game.} ({Black should try} 22... Be7 $14) 23. Bxb7 $1 $18 {[%emt 0:02:30][%mdl 576] Decoy} h5 {[%emt 0:05:30]} (23... Qb5 24. Be4) 24. h4 {[%emt 0:01:30]} Be7 {[%emt 0:00:30]} 25. Bf3 {[%emt 0:00:30]} g6 {[%emt 0:00:00]} 26. Rec1 {[%emt 0:01:30] Strongly threatening b5.} e5 $2 {[%emt 0:01:00]} (26... Rb8 27. c6 Qd8) 27. b5 {[%emt 0:01:30]} Qh3 {[%emt 0:01:30]} 28. Bg2 {[%emt 0:01:30]} Qg4 {[%emt 0:00:00]} 29. b6 {[%emt 0:00:00]} axb6 {[%emt 0:00:00]} 30. cxb6 {[%emt 0:00:00][%cal Bc5b6,Bb6b7][%mdl 32]} Rxc2 {[%emt 0:00:30]} 31. Rxc2 {[%emt 0:00:30]} Qd1+ {[%emt 0:00:30]} 32. Kh2 {[%emt 0:00:30] Threatens to win with b7.} Bxa3 {[%emt 0:00:30]} 33. b7 {[%emt 0:00:30][%cal Ob3b6] Threatening mate with Qb6!} Bd6 {[%emt 0:00:30]} 34. Qb6 {[%emt 0:00:30][%mdl 64] Deflection.   Weighted Error Value: White=0.13 (very precise) /Black=0.62} 1-0

[Event "Turkish Youth Championships 2023"]
[Site "Samsun"]
[Date "2023.05.22"]
[Round "5.12"]
[White "Derbentli, Cemil Furkan"]
[Black "Saka, Omer"]
[Result "0-1"]
[WhiteElo "1486"]
[BlackElo "1843"]
[Annotator "COMBH"]
[PlyCount "120"]
[EventDate "2023.05.19"]
[EventType "swiss"]
[EventCountry "TUR"]
[TimeControl "5400+30"]
[WhiteClock "0:02:39"]

1. e4 {[%emt 0:01:00]} c5 {[%emt 0:01:00]} 2. Nf3 {[%emt 0:00:00]} d6 {[%emt 0:00:30]} 3. Bb5+ {[%emt 0:01:00]} Nd7 {[%emt 0:02:30]} 4. O-O {[%emt 0:00:30]} a6 {[%emt 0:02:30]} 5. Bd3 {[%emt 0:00:30]} g6 {[%emt 0:04:30]} 6. c3 {[%emt 0:00:30]} Bg7 {[%emt 0:00:30]} 7. Bc2 {[%emt 0:00:30]} e6 {[%emt 0:01:30]} 8. d4 {[%emt 0:01:30]} Ne7 {[%emt 0:04:30]} 9. a4 {[%emt 0:21:30]} O-O {[%emt 0:06:30]} 10. Na3 {[%emt 0:09:30]} cxd4 {[%emt 0:04:30]} 11. cxd4 {[%emt 0:04:30]} d5 {[%emt 0:00:30]} 12. Bd2 {[%emt 0:08:30]} dxe4 {[%emt 0:04:30]} 13. Bxe4 {[%emt 0:00:30]} Nf6 {[%emt 0:03:30]} 14. Bd3 {[%emt 0:05:30]} Nc6 {[%emt 0:03:30]} 15. Bc3 {[%emt 0:00:30]} Nd5 {[%emt 0:00:30]} 16. Nc4 {[%emt 0:00:30]} b6 {[%emt 0:03:30]} 17. Be4 {[%emt 0:02:30]} Rb8 {[%emt 0:23:30]} 18. Bxd5 {[%emt 0:13:30]} Qxd5 {[%emt 0:02:30]} 19. Ne3 {[%emt 0:01:30]} Qd8 {[%emt 0:03:30]} 20. d5 {[%emt 0:05:30]} exd5 {[%emt 0:00:00]} 21. Bxg7 {[%emt 0:01:52]} Kxg7 {[%emt 0:00:00]} 22. Nxd5 {[%emt 0:00:55]} Be6 {[%emt 0:01:30]} 23. Ne3 {[%emt 0:01:14]} Qf6 {[%emt 0:03:30]} 24. Qd6 {[%emt 0:00:25]} Rbc8 {[%emt 0:01:30]} 25. Rac1 {[%emt 0:01:29]} Rfd8 {[%emt 0:01:30]} 26. Qa3 {[%emt 0:00:30]} a5 {[%emt 0:03:50]} 27. Nc4 {[%emt 0:07:33]} Bxc4 {[%emt 0:03:41]} 28. Rxc4 {[%emt 0:00:01]} Nb4 {[%emt 0:00:00]} 29. Rc3 {[%emt 0:02:59]} Rxc3 {[%emt 0:02:10]} 30. bxc3 {[%emt 0:00:09]} Rd3 {[%emt 0:00:36]} 31. Rc1 {[%emt 0:00:53]} Nd5 {[%emt 0:00:36]} 32. Qa2 {[%emt 0:04:31]} Rxc3 {[%emt 0:01:56]} 33. Rd1 {[%emt 0:00:52]} Nf4 {[%emt 0:02:55]} 34. Nd2 {[%emt 0:01:44]} Qc6 {[%emt 0:04:23]} 35. f3 {[%emt 0:00:16]} Qc5+ {[%emt 0:00:30]} 36. Kh1 {[%emt 0:01:03]} Rd3 {[%emt 0:02:42]} 37. Rg1 {[%emt 0:00:30]} Qd5 {[%emt 0:00:30]} 38. Qxd5 {[%emt 0:00:30]} Nxd5 {[%emt 0:01:17]} 39. Nc4 {[%emt 0:02:13]} Rc3 {[%emt 0:00:30]} 40. Nd6 {[%emt 0:00:30]} Ra3 {[%emt 0:00:30]} 41. h3 {[%emt 0:00:30]} Rxa4 {[%emt 0:00:30]} 42. Rc1 {[%emt 0:00:30]} Rb4 {[%emt 0:00:51]} 43. Rc8 {[%emt 0:00:00]} a4 {[%emt 0:01:09]} 44. Ra8 {[%emt 0:00:19]} h5 {[%emt 0:00:30]} 45. Ne8+ {[%emt 0:01:16]} Kh6 {[%emt 0:01:14]} 46. Kg1 {[%emt 0:00:04]} b5 {[%emt 0:00:00]} 47. Nd6 {[%emt 0:00:04]} Rb1+ {[%emt 0:01:00]} 48. Kf2 {[%emt 0:00:09]} Rb2+ {[%emt 0:00:00]} 49. Ke1 {[%emt 0:00:08]} Kg5 {[%emt 0:00:50]} 50. g3 {[%emt 0:00:11]} Kf6 {[%emt 0:00:32]} 51. Ra6 {[%emt 0:01:36]} Ke5 {[%emt 0:00:30]} 52. Kd1 {[%emt 0:00:30]} Kd4 {[%emt 0:00:30]} 53. Nxf7 {[%emt 0:00:27]} b4 {[%emt 0:00:46]} 54. Nd6 {[%emt 0:00:30]} Nc3+ {[%emt 0:00:30]} 55. Kc1 {[%emt 0:00:30]} Rb1+ {[%emt 0:00:30]} 56. Kd2 {[%emt 0:00:30]} b3 {[%emt 0:00:00]} 57. Nb5+ {[%emt 0:00:06]} Nxb5 {[%emt 0:00:11]} 58. Rxa4+ {[%emt 0:00:30]} Kc5 {[%emt 0:00:30]} 59. Ra6 {[%emt 0:00:30]} Rb2+ {[%emt 0:00:30]} 60. Kd3 {[%emt 0:00:30]} Rg2 {[%emt 0:00:30]} 0-1

[Event "Turkish Youth Championships 2023"]
[Site "Samsun"]
[Date "2023.05.22"]
[Round "5.13"]
[White "Hasirci, Ozgur Deniz"]
[Black "Herdem, Talha"]
[Result "1-0"]
[WhiteElo "1763"]
[BlackElo "1417"]
[Annotator "COMBH"]
[PlyCount "104"]
[EventDate "2023.05.19"]
[EventType "swiss"]
[EventCountry "TUR"]
[TimeControl "5400+30"]
[WhiteClock "0:01:37"]

1. e4 {[%emt 0:01:00]} c5 {[%emt 0:01:00]} 2. Nf3 {[%emt 0:00:30]} e6 {[%emt 0:00:30]} 3. g3 {[%emt 0:00:30]} Nc6 {[%emt 0:00:30]} 4. Bg2 {[%emt 0:00:30]} Nf6 {[%emt 0:00:30]} 5. Nc3 {[%emt 0:00:30]} d5 {[%emt 0:00:30]} 6. exd5 {[%emt 0:00:30]} exd5 {[%emt 0:00:30]} 7. d4 {[%emt 0:00:30]} cxd4 {[%emt 0:00:30]} 8. Nxd4 {[%emt 0:00:30]} Bg4 {[%emt 0:00:00]} 9. f3 {[%emt 0:20:30]} Bd7 {[%emt 0:00:00]} 10. Be3 {[%emt 0:05:30]} Bb4 {[%emt 0:13:30]} 11. O-O {[%emt 0:02:30]} O-O {[%emt 0:01:30]} 12. Nce2 {[%emt 0:00:30]} Re8 {[%emt 0:02:30]} 13. Bf2 {[%emt 0:00:00]} Ne5 {[%emt 0:01:30]} 14. c3 {[%emt 0:01:00]} Bd6 {[%emt 0:00:30]} 15. b3 {[%emt 0:01:30]} h5 {[%emt 0:03:30]} 16. Qd2 {[%emt 0:06:30]} Ng6 {[%emt 0:07:30]} 17. h4 {[%emt 0:21:30]} b5 {[%emt 0:06:30]} 18. Nc2 {[%emt 0:07:30]} Qc7 {[%emt 0:06:30]} 19. Ne3 {[%emt 0:00:30]} Rac8 {[%emt 0:03:30]} 20. Rfd1 {[%emt 0:04:30]} Bc5 {[%emt 0:20:30]} 21. Rac1 {[%emt 0:02:30]} Qb6 {[%emt 0:02:30]} 22. Nd4 {[%emt 0:00:00]} Ne5 {[%emt 0:02:30]} 23. Ndc2 {[%emt 0:03:00]} Qb8 {[%emt 0:06:29]} 24. Re1 {[%emt 0:02:00]} Bc6 {[%emt 0:11:19]} 25. Nd4 {[%emt 0:03:24]} Ba8 {[%emt 0:04:23]} 26. Nec2 {[%emt 0:06:00]} a5 {[%emt 0:01:07]} 27. Nf5 {[%emt 0:04:34]} Qb6 {[%emt 0:03:37]} 28. Bxc5 {[%emt 0:01:01]} Qxc5+ {[%emt 0:00:47]} 29. Ncd4 {[%emt 0:00:06]} Qb6 {[%emt 0:00:15]} 30. Kh1 {[%emt 0:01:06]} b4 {[%emt 0:00:32]} 31. cxb4 {[%emt 0:00:44]} Rxc1 {[%emt 0:00:14]} 32. Qxc1 {[%emt 0:00:38]} Qxb4 {[%emt 0:00:43]} 33. a3 {[%emt 0:00:26]} Qb6 {[%emt 0:00:33]} 34. Qg5 {[%emt 0:02:43]} Ng6 {[%emt 0:00:30]} 35. Rxe8+ {[%emt 0:00:30]} Nxe8 {[%emt 0:00:30]} 36. Qxh5 {[%emt 0:00:30]} Qf6 {[%emt 0:00:30]} 37. Qg5 {[%emt 0:00:30]} Bb7 {[%emt 0:00:30]} 38. Qe3 {[%emt 0:00:30]} Nc7 {[%emt 0:00:30]} 39. f4 {[%emt 0:00:30]} Ne6 {[%emt 0:00:30]} 40. h5 {[%emt 0:00:30]} Ngf8 {[%emt 0:00:22]} 41. b4 {[%emt 0:02:19]} axb4 {[%emt 0:00:34]} 42. axb4 {[%emt 0:00:27]} Nxd4 {[%emt 0:00:17]} 43. Nxd4 {[%emt 0:00:30]} Qb6 {[%emt 0:00:30]} 44. Qc3 {[%emt 0:00:45]} Ba6 {[%emt 0:00:45]} 45. Bxd5 {[%emt 0:00:13]} Qd6 {[%emt 0:00:31]} 46. Qb3 {[%emt 0:00:43]} Qe7 {[%emt 0:00:31]} 47. Qc3 {[%emt 0:00:53]} Qd6 {[%emt 0:00:27]} 48. Qc5 {[%emt 0:00:04]} Qh6 {[%emt 0:00:30]} 49. Bf3 {[%emt 0:00:25]} Nd7 {[%emt 0:00:32]} 50. Qe7 {[%emt 0:00:35]} Nf6 {[%emt 0:00:30]} 51. Nf5 {[%emt 0:00:30]} Qh8 {[%emt 0:00:30]} 52. Nd6 {[%emt 0:00:30]} Kh7 {[%emt 0:01:02]} 1-0

[Event "Turkish Youth Championships 2023"]
[Site "Samsun"]
[Date "2023.05.22"]
[Round "5.14"]
[White "Simsek, Ayaz"]
[Black "Yildiz, Elif Zeren"]
[Result "1/2-1/2"]
[WhiteElo "1474"]
[BlackElo "1722"]
[Annotator "COMBH"]
[PlyCount "37"]
[EventDate "2023.05.19"]
[EventType "swiss"]
[EventCountry "TUR"]
[TimeControl "5400+30"]
[BlackClock "0:37:00"]

1. e4 {[%emt 0:01:00]} g6 {[%emt 0:01:00]} 2. d4 {[%emt 0:00:30]} Bg7 {[%emt 0:00:30]} 3. Nf3 {[%emt 0:00:30]} d6 {[%emt 0:00:30]} 4. Bd3 {[%emt 0:00:30]} Nd7 {[%emt 0:00:30]} 5. O-O {[%emt 0:00:30]} e5 {[%emt 0:00:30]} 6. dxe5 {[%emt 0:00:30]} dxe5 {[%emt 0:00:30]} 7. Nbd2 {[%emt 0:00:30]} Nc5 {[%emt 0:06:30]} 8. Nc4 {[%emt 0:05:30]} Qe7 {[%emt 0:06:30]} 9. a4 {[%emt 0:14:30]} Bg4 {[%emt 0:08:30]} 10. b3 {[%emt 0:14:30]} O-O-O {[%emt 0:09:30]} 11. Ba3 {[%emt 0:03:30]} f6 {[%emt 0:05:30]} 12. Qe2 {[%emt 0:06:30]} Bf8 {[%emt 0:03:30]} 13. h3 {[%emt 0:06:30]} Bxf3 {[%emt 0:08:30]} 14. Qxf3 {[%emt 0:00:00]} Qg7 {[%emt 0:00:30]} 15. Qe3 {[%emt 0:02:00]} Rd4 {[%emt 0:06:30]} 16. Bb2 {[%emt 0:07:30]} Rd8 {[%emt 0:01:30]} 17. Ba3 {[%emt 0:04:30]} Rd4 {[%emt 0:01:30]} 18. Bb2 {[%emt 0:01:30]} Rd8 {[%emt 0:00:30]} 19. Ba3 {[%emt 0:00:30]} 1/2-1/2

[Event "Turkish Youth Championships 2023"]
[Site "Samsun"]
[Date "2023.05.22"]
[Round "5.15"]
[White "Oner, Cinar"]
[Black "Zerey, Demhat"]
[Result "1/2-1/2"]
[WhiteElo "1436"]
[BlackElo "1710"]
[Annotator "COMBH"]
[PlyCount "124"]
[EventDate "2023.05.19"]
[EventType "swiss"]
[EventCountry "TUR"]
[TimeControl "5400+30"]
[WhiteClock "0:05:00"]

1. e4 {[%emt 0:02:00]} c5 {[%emt 0:01:00]} 2. Nf3 {[%emt 0:00:30]} d6 {[%emt 0:00:30]} 3. d4 {[%emt 0:00:30]} cxd4 {[%emt 0:00:30]} 4. Nxd4 {[%emt 0:00:00]} Nf6 {[%emt 0:01:30]} 5. Nc3 {[%emt 0:00:00]} g6 {[%emt 0:00:00]} 6. Be2 {[%emt 0:02:30]} Bg7 {[%emt 0:00:00]} 7. Be3 {[%emt 0:00:30]} O-O {[%emt 0:00:30]} 8. O-O {[%emt 0:00:30]} Nc6 {[%emt 0:00:30]} 9. Qd2 {[%emt 0:09:30]} Nxd4 {[%emt 0:06:30]} 10. Bxd4 {[%emt 0:00:30]} Be6 {[%emt 0:00:30]} 11. Rad1 {[%emt 0:05:30]} Qc8 {[%emt 0:02:30]} 12. b3 {[%emt 0:12:30]} Rd8 {[%emt 0:14:30]} 13. h3 {[%emt 0:04:30]} Qd7 {[%emt 0:09:30]} 14. Bf3 {[%emt 0:02:30]} Ne8 {[%emt 0:03:30]} 15. Ne2 {[%emt 0:05:30]} b5 {[%emt 0:07:30]} 16. Qa5 {[%emt 0:11:30]} Qc7 {[%emt 0:07:30]} 17. Qxb5 {[%emt 0:01:30]} Qxc2 {[%emt 0:04:30]} 18. Qa4 {[%emt 0:07:30]} Qc7 {[%emt 0:03:30]} 19. Rc1 {[%emt 0:04:30]} Qb7 {[%emt 0:01:30]} 20. Bxg7 {[%emt 0:00:30]} Nxg7 {[%emt 0:00:30]} 21. Nd4 {[%emt 0:02:30]} Bd7 {[%emt 0:00:30]} 22. Qc4 {[%emt 0:02:30]} e5 {[%emt 0:00:30]} 23. Nc6 {[%emt 0:04:30]} Re8 {[%emt 0:03:30]} 24. Na5 {[%emt 0:00:47]} Qb6 {[%emt 0:00:30]} 25. Qc7 {[%emt 0:00:21]} Bb5 {[%emt 0:01:30]} 26. Rfd1 {[%emt 0:00:22]} Qxc7 {[%emt 0:01:30]} 27. Rxc7 {[%emt 0:00:30]} Ne6 {[%emt 0:00:30]} 28. Rb7 {[%emt 0:00:30]} Ba6 {[%emt 0:01:30]} 29. Rd7 {[%emt 0:00:30]} Nd4 {[%emt 0:00:30]} 30. Rxd6 {[%emt 0:00:30]} Rad8 {[%emt 0:02:30]} 31. Rd5 {[%emt 0:01:51]} Rc8 {[%emt 0:05:30]} 32. Rd2 {[%emt 0:01:00]} Rc1+ {[%emt 0:01:53]} 33. Kh2 {[%emt 0:00:17]} Re7 {[%emt 0:02:00]} 34. Rd6 {[%emt 0:02:52]} Bb5 {[%emt 0:03:38]} 35. a4 {[%emt 0:01:02]} Bf1 {[%emt 0:00:26]} 36. Rd1 {[%emt 0:01:03]} Rxd1 {[%emt 0:02:25]} 37. Bxd1 {[%emt 0:00:01]} Bd3 {[%emt 0:00:26]} 38. f4 {[%emt 0:04:14]} Bxe4 {[%emt 0:01:15]} 39. fxe5 {[%emt 0:00:05]} Nf5 {[%emt 0:00:15]} 40. Rd8+ {[%emt 0:00:30]} Kg7 {[%emt 0:00:00]} 41. Nc4 {[%emt 0:00:00]} Bc6 {[%emt 0:07:25]} 42. g4 {[%emt 0:00:40]} Nh4 {[%emt 0:00:02]} 43. Kg3 {[%emt 0:01:02]} g5 {[%emt 0:00:05]} 44. Bc2 {[%emt 0:00:45]} Bb7 {[%emt 0:02:02]} 45. b4 {[%emt 0:02:08]} Rc7 {[%emt 0:01:00]} 46. Bd3 {[%emt 0:00:03]} Be4 {[%emt 0:00:15]} 47. Nd6 {[%emt 0:00:30]} Bc6 {[%emt 0:00:30]} 48. b5 {[%emt 0:00:30]} Bd7 {[%emt 0:00:44]} 49. Kf2 {[%emt 0:02:44]} Ng6 {[%emt 0:01:03]} 50. Bxg6 {[%emt 0:02:53]} hxg6 {[%emt 0:00:05]} 51. Ke3 {[%emt 0:00:27]} Kh7 {[%emt 0:01:15]} 52. Nxf7 {[%emt 0:00:47]} Bxg4 {[%emt 0:00:21]} 53. hxg4 {[%emt 0:01:46]} Rxf7 {[%emt 0:00:02]} 54. e6 {[%emt 0:00:00]} Rf1 {[%emt 0:00:27]} 55. Rd7+ {[%emt 0:00:39]} Kh6 {[%emt 0:00:02]} 56. Ke4 {[%emt 0:00:33]} a5 {[%emt 0:00:04]} 57. e7 {[%emt 0:00:19]} Re1+ {[%emt 0:00:45]} 58. Kd5 {[%emt 0:00:08]} Rxe7 {[%emt 0:00:00]} 59. Kc6 {[%emt 0:00:30]} Re4 {[%emt 0:00:48]} 60. b6 {[%emt 0:00:30]} Rc4+ {[%emt 0:00:30]} 61. Kb5 {[%emt 0:00:30]} Rb4+ {[%emt 0:00:30]} 62. Kxa5 {[%emt 0:00:30]} Rb5+ {[%emt 0:00:00]} 1/2-1/2